Cogmind - Beta 14 @@@ ROGUE MODE // 2024.11.16 @ 18:01:38 Player: KURIIRI Result: Self-destructed Performance ------------- Evolutions (3) 1500 Regions Visited (11) 2200 Robots Destroyed (174) 870 Value Destroyed (5400) 5400 Prototype IDs (6) 120 Alien Tech Used (0) 0 Bonus (2167) 2167 TOTAL SCORE: 12257 Bonus ------- High Alert Combat Kills 767 Entered Garrisons 400 Used RIF Installer 1000 Cogmind --------- Core Integrity 660/700 Matter 225/300 Energy 160/160 System Corruption 0% Temperature Cool (0) Movement Treading (170) Location -7/Factory Parts ------- > --- POWER (1) -------- Light Nuclear Core > --- PROPULSION (3) --- Armored Treads Armored Medium Treads Armored Medium Treads > --- UTILITY (6) ------ High-capacity Storage Unit Target Analyzer Kinecellerator Improved Medium Armor Plating System Shield Relay Coupler [Sentry] (29) > --- WEAPON (3) ------- Mass Driver Mass Driver > --- INVENTORY (20) --- Nuclear Core Light Treads Light Treads Light Treads Improved Heat Sink Improved Heat Sink Advanced Cooling System Experimental Sensor Array Improved Medium Armor Plating Improved Medium Armor Plating Relay Coupler [NC] (35) Relay Coupler [NC] (37) Relay Coupler [Heavy] (18) System Restoration Module Mini Drone Bay (3/3) Shock Rifle Shock Rifle Beam Rifle Improved Datajack Katana Peak State ------------ > --- POWER ------------ Light Nuclear Core > --- PROPULSION ------- Armored Treads Armored Medium Treads Armored Medium Treads > --- UTILITY ---------- High-capacity Storage Unit Target Analyzer Kinecellerator Improved Medium Armor Plating System Shield Relay Coupler [Sentry] > --- WEAPON ----------- Mass Driver Mass Driver Grenade Launcher > --- INVENTORY -------- Nuclear Core Light Treads Light Treads Light Treads Improved Heat Sink Improved Heat Sink Advanced Cooling System Experimental Sensor Array Improved Medium Armor Plating Improved Medium Armor Plating Relay Coupler [NC] Relay Coupler [NC] Relay Coupler [Heavy] System Restoration Module Mini Drone Bay Shock Rifle Shock Rifle Beam Rifle Katana [Rating: 56] Favorites ----------- Power Ion Engine Engine Ion Engine Power Core Light Nuclear Core Propulsion Light Treads Treads Light Treads Wheel Wheel Utility High-capacity Storage Unit Device Seismic Detector Storage High-capacity Storage Unit Processor Targeting Computer Hackware Hacking Suite Protection Light Armor Plating Weapon Heavy Assault Rifle Energy Gun EM Shotgun Ballistic Gun Heavy Assault Rifle Ballistic Cannon Mass Driver Launcher Grenade Launcher Special Weapon Remote Datajack Slashing Weapon Katana Build | -11 -10 -10 -9 -9 -9 -8 -8 -8 -8 -8 -7 ------- Run | Yrd Mat Min Mat Min Exi Min Mat Gar Mat Gar Fac Slots Evolved 6 | . . . 2 . . . 2 . . . 2 Power . | . . . . . . . . . . . . Propulsion 1 | . . . 1 . . . . . . . . Utility 4 | . . . 1 . . . 1 . . . 2 Weapon 1 | . . . . . . . 1 . . . . Parts Attached 120 | 7 13 . 23 . . 8 22 6 3 36 2 Power 8 | 1 1 . . . . 2 1 1 . 2 . Engine 4 | 1 1 . . . . 1 . . . 1 . Core 4 | . . . . . . 1 1 1 . 1 . Reactor . | . . . . . . . . . . . . Propulsion 32 | 2 2 . 7 . . 3 6 2 2 8 . Treads 31 | 2 1 . 7 . . 3 6 2 2 8 . Leg . | . . . . . . . . . . . . Wheel 1 | . 1 . . . . . . . . . . Hover . | . . . . . . . . . . . . Flight . | . . . . . . . . . . . . Utility 25 | 1 3 . 3 . . 1 4 2 . 9 2 Device 8 | . 1 . . . . . 4 1 . 1 1 Storage 2 | 1 1 . . . . . . . . . . Processor 3 | . . . 1 . . 1 . . . 1 . Hackware 4 | . . . . . . . . 1 . 2 1 Protection 8 | . 1 . 2 . . . . . . 5 . Artifact . | . . . . . . . . . . . . Weapon 55 | 3 7 . 13 . . 2 11 1 1 17 . Energy Gun 26 | 1 5 . 3 . . 2 7 . 1 7 . Energy Cannon . | . . . . . . . . . . . . Ballistic Gun 17 | 2 2 . 10 . . . 2 . . 1 . Ballistic Cannon 2 | . . . . . . . . . . 2 . Launcher 4 | . . . . . . . . 1 . 3 . Special Weapon 1 | . . . . . . . . . . 1 . Impact Weapon . | . . . . . . . . . . . . Slashing Weapon 5 | . . . . . . . 2 . . 3 . Piercing Weapon . | . . . . . . . . . . . . Special Melee Weapon . | . . . . . . . . . . . . Unidentified Prototypes 2 | . . . 1 . . . 1 . . . . Parts Lost 32 | . . . 5 . . 7 1 4 . 15 . Power 3 | . . . . . . 1 . 1 . 1 . Propulsion 8 | . . . . . . 3 . 2 . 3 . Utility 6 | . . . 2 . . . . 1 . 3 . Weapon 15 | . . . 3 . . 3 1 . . 8 . Highest Loss Streak 7 | . . . 2 . . 4 1 3 . 7 . To Critical Strikes . | . . . . . . . . . . . . Average Slot Usage (%) 97 | . 97 100 96 100 100 88 95 99 100 97 89 Engine 7 | . 14 14 11 11 11 5 . . . 3 . Core 3 | . . . . . . 3 9 9 9 5 7 Treads 25 | . 15 14 33 33 33 28 27 26 27 26 23 Wheel 3 | . 12 14 . . . . . . . . . Device 9 | . 6 14 11 11 11 9 8 8 9 7 1 Storage 11 | . 15 14 11 11 11 11 9 9 9 9 7 Processor 6 | . . . 1 11 11 12 18 9 9 5 7 Hackware 2 | . . . . . . . . 8 9 5 11 Protection 2 | . 3 . 6 . . . . . . 7 7 Energy Gun 13 | . 21 28 3 . . 6 20 9 16 17 . Ballistic Gun 8 | . 6 . 18 22 22 11 2 14 9 1 . Peak Build Rating 56 | 6 11 13 15 15 16 18 36 37 35 49 56 Average Rating 20 | 4 10 12 14 15 15 15 29 35 34 30 51 On Entrance 20 | . 6 11 13 15 15 16 18 35 34 35 49 Naked Turns . | . . . . . . . . . . . . Heaviest Build 77 | 14 56 52 55 52 52 52 59 59 57 73 77 Greatest Support 74 | 40 40 10 60 60 60 60 60 60 60 74 74 Greatest Overweight (x) 5 | . 5 5 . . . 1 . 2 . 2 1 Average Overweight (x) 1 | . 4 5 . . . . . . . . . Largest Inventory Capacity 20 | 8 20 20 20 20 20 20 20 20 20 20 20 Average Capacity 19 | 7 18 20 20 20 20 20 20 20 20 20 20 Most Carried 20 | 4 20 20 20 20 20 20 20 20 19 20 20 Average Carried 18 | 1 14 19 18 20 19 18 18 18 18 18 19 Final Capacity 20 | 8 20 20 20 20 20 20 20 20 20 20 20 Final Carried 20 | 3 20 20 20 20 20 17 20 17 19 19 20 Class Distribution -------------------- 40% | Scavenger-Mutant 29% | Mutant 11% | Scavenger-Skirmisher 8% | Scavenger-Gunner 3% | Scavenger-Tank 3% | Gunner Dominant Class ---------------- Mutant | -10/Materials Mutant | -10/Mines Scavenger-Mutant | -9/Materials Scavenger-Mutant | -9/Mines Scavenger-Mutant | -9/Exiles Scavenger-Mutant | -8/Mines Scavenger-Gunner | -8/Materials Scavenger-Skirmisher | -8/Garrison Scavenger-Skirmisher | -8/Materials Scavenger-Mutant | -8/Garrison Gunner | -7/Factory Resources | -11 -10 -10 -9 -9 -9 -8 -8 -8 -8 -8 -7 ----------- Run | Yrd Mat Min Mat Min Exi Min Mat Gar Mat Gar Fac Matter Collected 2532 | 212 227 . 678 48 . 179 231 423 94 391 49 Remotely . | . . . . . . . . . . . . Salvage Created 6924 | . 997 126 1522 83 . 418 1106 972 371 1282 47 Parts 390 | . 55 . 96 11 . 20 65 42 25 76 . Haulers Intercepted 7 | . 2 . 2 . . . 2 . 1 . . Recyclers Shooed 4 | . . . 2 . . 1 1 . . . . Parts Field Recycled . | . . . . . . . . . . . . Retrieved Matter . | . . . . . . . . . . . . Parts Self-Destructed . | . . . . . . . . . . . . Prevented . | . . . . . . . . . . . . Kills | -11 -10 -10 -9 -9 -9 -8 -8 -8 -8 -8 -7 ------- Run | Yrd Mat Min Mat Min Exi Min Mat Gar Mat Gar Fac Combat Hostiles Destroyed 146 | . 16 7 25 6 . 12 17 21 5 36 1 Melee 5 | . . . . . . . . . . 5 . Guns 110 | . 14 7 25 6 . 9 14 14 5 16 . Cannons 1 | . . . . . . . . . . . 1 AOE 26 | . 2 . . . . 3 3 5 . 13 . Classes Destroyed 17 | . 8 1 5 . . . 1 1 . 1 . Worker 6 | . 2 . 1 . . . 3 . . . . Builder 4 | . 1 . . . . . 2 . 1 . . Tunneler 1 | . 1 . . . . . . . . . . Hauler 7 | . 2 . 2 . . . 2 . 1 . . Recycler 5 | . 1 . 3 . . 1 . . . . . Mechanic 2 | . . . 1 . . . 1 . . . . Operator 1 | . . . 1 . . . . . . . . Watcher 9 | . 3 . 3 . . . 1 . 2 . . Swarmer 37 | . 3 . . 6 . 7 3 4 . 14 . Grunt 63 | . 13 . 18 . . 4 8 10 2 8 . Brawler 6 | . . . 1 . . 1 2 . 2 . . Duelist 5 | . . . 1 . . . . 1 1 2 . Sentry 16 | . . . 5 . . . 3 4 . 3 1 Specialist 4 | . . . . . . . . . . 4 . Hunter 3 | . . . . . . . 1 . . 2 . Programmer 5 | . . . . . . . . 2 . 3 . Assembled 7 | . . 7 . . . . . . . . . Best Kill Streak 9 | . 4 4 4 3 . 9 4 9 3 6 1 Combat Bots Only 9 | . 4 4 4 3 . 9 3 9 3 6 1 Max Kills in Single Turn 3 | . 2 2 2 2 . 2 3 2 2 3 1 Gunslinging 1 | . . . . 1 . . . . . . . Exploded 3 | . 1 . . . . 2 1 2 . 3 . Melee 1 | . . . . . . . . . . 1 . Uniques/NPCs Destroyed . | . . . . . . . . . . . . Combat | -11 -10 -10 -9 -9 -9 -8 -8 -8 -8 -8 -7 -------- Run | Yrd Mat Min Mat Min Exi Min Mat Gar Mat Gar Fac Hostile Shots Fired 597 | . 41 15 130 15 . 86 56 96 5 135 18 Missed 170 | . 14 5 53 7 . 15 14 24 2 31 5 Damage Taken 5850 | . 320 126 985 65 . 844 574 1091 45 1703 97 Core 803 | . 31 53 119 . . 133 37 153 . 237 40 Absorbed by Shields . | . . . . . . . . . . . . Redirected to Shielding 17 | . . . . . . . . . . 17 . Regen/Repaired (Parts) 62 | . . . . . . . 62 . . . . Core Remaining (%) 56 | 100 . 66 . . . 37 . . . 22 . Volleys Fired 404 | . 50 16 91 8 . 37 46 59 16 79 2 Largest 3 | . 2 2 2 2 . 2 3 3 3 3 2 Hottest 183 | . 90 90 90 46 . 68 183 111 147 167 114 Shots Fired 841 | . 100 32 177 16 . 63 107 134 48 160 4 Gun 813 | . 100 32 177 16 . 63 107 121 48 149 . Cannon 4 | . . . . . . . . . . . 4 Launcher 24 | . . . . . . . . 13 . 11 . Special . | . . . . . . . . . . . . Kinetic 341 | . 13 . 156 16 . 47 6 75 16 8 4 Thermal 201 | . . . . . . . 29 46 32 94 . Explosive 7 | . . . . . . . . . . 7 . Electromagnetic 292 | . 87 32 21 . . 16 72 13 . 51 . Robot Hit Streak 17 | . 9 5 9 10 . 12 17 6 9 14 2 Robot Miss Streak 6 | . 4 5 4 2 . 2 5 6 2 5 1 Penetration Max . | . . . . . . . . . . . . Secondary Targets 14 | . 2 1 4 1 . 2 1 2 1 . . Max Gunslinging Chain 1 | . 1 1 1 1 . 1 1 1 1 . . Shots Hit Robots 549 | . 66 24 119 9 . 51 80 75 28 94 3 Core Hits 311 | . 47 15 63 7 . 20 50 36 15 56 2 Critical Kills . | . . . . . . . . . . . . Critical Parts Destroyed . | . . . . . . . . . . . . Critical Strikes 18 | . . . . . . . 3 1 1 12 1 Burn 12 | . . . . . . . 3 1 1 7 . Blast 1 | . . . . . . . . . . . 1 Corrupt 1 | . . . . . . . . . . 1 . Sever 4 | . . . . . . . . . . 4 . Melee Attacks 30 | . . . . . . . 2 . . 28 . Impact . | . . . . . . . . . . . . Slashing 30 | . . . . . . . 2 . . 28 . Piercing . | . . . . . . . . . . . . Sneak Attacks 2 | . . . . . . . 1 . . 1 . Combat Hostiles 1 | . . . . . . . . . . 1 . Follow-up Attacks . | . . . . . . . . . . . . Damage Inflicted 11923 | . 1104 262 1864 164 . 1160 1881 2038 585 2748 117 Guns 8871 | . 958 262 1832 141 . 822 1424 1380 585 1467 . Cannons 113 | . . . . . . . . . . . 113 Explosions 2484 | . 146 . 32 . . 323 401 658 . 924 . Melee 413 | . . . . . . . 56 . . 357 . Ramming 42 | . . . . 23 . 15 . . . . 4 Kinetic 3597 | . 85 . 1578 141 . 525 47 910 125 73 113 Thermal 3399 | . 146 . 32 . . 323 721 470 460 1247 . Explosive 657 | . . . . . . . . . . 657 . Electromagnetic 3815 | . 873 262 254 . . 297 1057 658 . 414 . Impact . | . . . . . . . . . . . . Slashing 413 | . . . . . . . 56 . . 357 . Piercing . | . . . . . . . . . . . . Highest Corruption 3 | . . . . . . . . . . 3 . Average Corruption 2 | . . . . . . . . . . 2 . Corruption Purged . | . . . . . . . . . . . . Corruption Blocked . | . . . . . . . . . . . . Effects 20 | . . . . . . . . . . 20 . Message Errors 4 | . . . . . . . . . . 4 . Matter Fused 8 | . . . . . . . . . . 8 . Heat Flow Errors 1 | . . . . . . . . . . 1 . Energy Discharges 3 | . . . . . . . . . . 3 . Data Loss (minor) 1 | . . . . . . . . . . 1 . Data Loss (major) 1 | . . . . . . . . . . 1 . Misfires 1 | . . . . . . . . . . 1 . Alerts 1 | . . . . . . . . . . 1 . Overload Shots . | . . . . . . . . . . . . Overflow Damage 85 | . . . 2 . . 64 . . . 19 . Projectiles . | . . . . . . . . . . . . Explosions 85 | . . . 2 . . 64 . . . 19 . Melee . | . . . . . . . . . . . . Knockbacks . | . . . . . . . . . . . . Impact . | . . . . . . . . . . . . Kinetic . | . . . . . . . . . . . . Secondary . | . . . . . . . . . . . . Self-Inflicted Damage 172 | . 29 . . . . 86 12 . . 45 . Shots 7 | . 1 . . . . 2 1 . . 3 . Rammed 6 | . . . . 3 . 2 . . . . 1 Targets Rammed 7 | . . . . 3 . 3 . . . . 1 Kicked . | . . . . . . . . . . . . Crushed 1 | . . . . . . 1 . . . . . Highest Temperature 292 | . 232 280 97 . . 21 244 286 257 292 108 Average Temperature 68 | . 57 102 21 . . 9 78 76 94 74 56 Received Heat Transfer 1770 | . 108 . 453 . . 207 261 387 27 297 30 Effects 2 | . . 2 . . . . . . . . . Interference 2 | . . 2 . . . . . . . . . Siege Activations . | . . . . . . . . . . . . Robots Corrupted 2 | . . . . . . . . 2 . . . Combat Hostiles 2 | . . . . . . . . 2 . . . Parts Fried 15 | . 5 . 1 . . . 4 3 . 2 . Impact Corruptions . | . . . . . . . . . . . . Robots Melted 2 | . . . . . . . . . . 2 . Combat Hostiles 2 | . . . . . . . . . . 2 . Parts Melted 14 | . . . . . . . . 2 2 10 . Heat Transferred 6541 | . 150 . 50 . . 400 1264 888 925 2864 . Parts Sabotaged . | . . . . . . . . . . . . Parts Stolen . | . . . . . . . . . . . . Parts Stripped . | . . . . . . . . . . . . Power Chain Reactions 14 | . 3 . 1 . . 2 6 . . 2 . Alert | -11 -10 -10 -9 -9 -9 -8 -8 -8 -8 -8 -7 ------- Run | Yrd Mat Min Mat Min Exi Min Mat Gar Mat Gar Fac Peak Influence 1248 | . 314 108 424 218 . 250 594 627 409 1248 732 Initial 655 | . . 108 . 78 . . 97 112 305 215 655 Average 307 | . 118 41 261 109 . 158 305 396 320 764 685 Maximum Alert Level 4 | . 1 . 2 1 . 1 2 2 2 4 3 Low Security (%) 41 | 100 77 100 16 66 . 59 33 10 . . . Level 1 31 | . 22 . 81 33 . 40 32 43 83 13 . Level 2 13 | . . . 1 . . . 34 46 16 15 76 Level 3 9 | . . . . . . . . . . 50 23 Level 4 3 | . . . . . . . . . . 20 . Level 5 . | . . . . . . . . . . . . High Security . | . . . . . . . . . . . . Max Security . | . . . . . . . . . . . . Squads Dispatched 17 | . 5 . 6 . . 1 1 . 3 . 1 Investigation 12 | . 5 . 5 . . . 1 . . . 1 Extermination . | . . . . . . . . . . . . Reinforcement 3 | . . . 1 . . 1 . . 1 . . Assault . | . . . . . . . . . . . . Garrison 2 | . . . . . . . . . 2 . . Intercept . | . . . . . . . . . . . . Searches Triggered . | . . . . . . . . . . . . Construction Impeded 1 | . . . . . . 1 . . . . . Haulers Reinforced . | . . . . . . . . . . . . Active Scanning Responses . | . . . . . . . . . . . . Cargo Convoy Interrupts . | . . . . . . . . . . . . Stealth | -11 -10 -10 -9 -9 -9 -8 -8 -8 -8 -8 -7 --------- Run | Yrd Mat Min Mat Min Exi Min Mat Gar Mat Gar Fac Distress Signals 5 | . 1 1 2 . . 1 . . . . . Communications Jammed . | . . . . . . . . . . . . Distress Signals . | . . . . . . . . . . . . Times Spotted 174 | . 17 6 39 5 . 12 25 23 9 37 1 Peak Tracking Total 7 | . 3 4 6 2 . 4 4 7 5 6 1 Tactical Retreats 5 | . . . . . . . 3 1 . 1 . Traps | -11 -10 -10 -9 -9 -9 -8 -8 -8 -8 -8 -7 ------- Run | Yrd Mat Min Mat Min Exi Min Mat Gar Mat Gar Fac Traps Triggered 7 | . 2 . 2 . . . . 1 . 2 . Indirectly 1 | . . . . . . . . 1 . . . Trap Hack Attempts . | . . . . . . . . . . . . Triggered . | . . . . . . . . . . . . Disarmed 2 | . . . . . . . 2 . . . . Reprogrammed . | . . . . . . . . . . . . Reused . | . . . . . . . . . . . . Traps Extracted . | . . . . . . . . . . . . Installed . | . . . . . . . . . . . . Triggered . | . . . . . . . . . . . . Machines | -11 -10 -10 -9 -9 -9 -8 -8 -8 -8 -8 -7 ---------- Run | Yrd Mat Min Mat Min Exi Min Mat Gar Mat Gar Fac Machines Disabled 16 | . 3 . 3 1 . . . 6 . 3 . Max in Single Turn 2 | . 2 . 1 1 . . . 1 . 1 . Garrison Relay 1 | . . . . . . . . . . 1 . Machines Repaired . | . . . . . . . . . . . . Machines Dismantled . | . . . . . . . . . . . . Machines Sabotaged . | . . . . . . . . . . . . Overloaded Fab Kills . | . . . . . . . . . . . . Hacking | -11 -10 -10 -9 -9 -9 -8 -8 -8 -8 -8 -7 --------- Run | Yrd Mat Min Mat Min Exi Min Mat Gar Mat Gar Fac Machines Accessed 31 | . 6 . 7 1 2 . 7 1 3 2 2 Terminals 19 | . 4 . 4 1 . . 4 1 2 2 1 Fabricators . | . . . . . . . . . . . . Repair Stations 4 | . . . 2 . . . 2 . . . . Recycling Units 4 | . 2 . 1 . . . . . . . 1 Scanalyzers . | . . . . . . . . . . . . Garrison Access 2 | . . . . . . . 1 . 1 . . Total Hacks 83 | . 15 . 24 3 2 . 22 2 8 4 3 Successful 46 | . 7 . 12 . 2 . 16 1 5 2 1 Failed 37 | . 8 . 12 3 . . 6 1 3 2 2 Catastrophic 7 | . 1 . 2 . . . . 1 1 . 2 Database Lockouts . | . . . . . . . . . . . . Manual 47 | . 14 . 9 4 . . 12 1 4 . 3 Terminals 61 | . 13 . 14 3 . . 16 2 7 4 2 Fabricators . | . . . . . . . . . . . . Repair Stations 14 | . . . 9 . . . 5 . . . . Recycling Units 4 | . 2 . 1 . . . . . . . 1 Scanalyzers . | . . . . . . . . . . . . Garrison Access 2 | . . . . . . . 1 . 1 . . Terminal Hacks 20 | . 1 . 5 . 2 . 5 1 4 2 . Record 2 | . . . . . 2 . . . . . . Robot Analysis 3 | . . . 2 . . . . . 1 . . Prototype ID Bank 2 | . 1 . 1 . . . . . . . . Terminal Index 1 | . . . . . . . 1 . . . . Alert Level 2 | . . . 1 . . . 1 . . . . Unreport Threat 4 | . . . 1 . . . 2 . 1 . . Locate Traps 1 | . . . . . . . . . 1 . . Disarm Traps 1 | . . . . . . . 1 . . . . Zone Layout 1 | . . . . . . . . . 1 . . Garrison Registry 2 | . . . . . . . . 1 . 1 . Patrol Navigation 1 | . . . . . . . . . . 1 . Fabricator Hacks . | . . . . . . . . . . . . Repair Station Hacks 7 | . . . 3 . . . 4 . . . . Scan Component 6 | . . . 3 . . . 3 . . . . Repair 1 | . . . . . . . 1 . . . . Recycling Unit Hacks . | . . . . . . . . . . . . Scanalyzer . | . . . . . . . . . . . . Garrison Access Hacks 2 | . . . . . . . 1 . 1 . . Unlock Access 2 | . . . . . . . 1 . 1 . . Unauthorized Hacks 17 | . 6 . 4 . . . 6 . . . 1 Terminals 13 | . 4 . 3 . . . 6 . . . . Assimilate 1 | . . . . . . . 1 . . . . Botnet 7 | . 3 . 1 . . . 3 . . . . Disrupt 1 | . . . 1 . . . . . . . . Operators 2 | . 1 . 1 . . . . . . . . Skim 2 | . . . . . . . 2 . . . . Fabricators . | . . . . . . . . . . . . Repair Stations . | . . . . . . . . . . . . Recycling Units 4 | . 2 . 1 . . . . . . . 1 Tunnel 4 | . 2 . 1 . . . . . . . 1 Scanalyzers . | . . . . . . . . . . . . Garrison Access . | . . . . . . . . . . . . Data Cores Recovered . | . . . . . . . . . . . . Used . | . . . . . . . . . . . . Hacking Detections 23 | . 4 . 6 1 . . 6 1 3 1 1 Full Trace Events 10 | . 3 . 3 1 . . 1 . 1 1 . Feedback Events . | . . . . . . . . . . . . Feedback Blocked . | . . . . . . . . . . . . Robot Schematics Acquired . | . . . . . . . . . . . . Robots Built . | . . . . . . . . . . . . Authchips . | . . . . . . . . . . . . Time . | . . . . . . . . . . . . Total Robot Build Rating . | . . . . . . . . . . . . Part Schematics Acquired . | . . . . . . . . . . . . Parts Built . | . . . . . . . . . . . . Authchips . | . . . . . . . . . . . . Time . | . . . . . . . . . . . . Total Part Build Rating . | . . . . . . . . . . . . Parts Repaired 1 | . . . . . . . 1 . . . . Time 51 | . . . . . . . 51 . . . . Parts Recycled . | . . . . . . . . . . . . Recycled Matter . | . . . . . . . . . . . . Retrieved Matter . | . . . . . . . . . . . . Retrieved Components . | . . . . . . . . . . . . Parts Scanalyzed . | . . . . . . . . . . . . Part Schematics Acquired . | . . . . . . . . . . . . Parts Damaged . | . . . . . . . . . . . . Bothacking | -11 -10 -10 -9 -9 -9 -8 -8 -8 -8 -8 -7 ------------ Run | Yrd Mat Min Mat Min Exi Min Mat Gar Mat Gar Fac Used RIF Installer 2 | . . . . . . . . 1 . 1 . Signal Jammer 1 | . . . . . . . . . . 1 . Robots Hacked . | . . . . . . . . . . . . Non-combat . | . . . . . . . . . . . . Combat . | . . . . . . . . . . . . Robot Hacks Applied . | . . . . . . . . . . . . Relay Couplers Released 3 | . . . . . . . . . . 3 . Machine Destruction 3 | . . . . . . . . . . 3 . Attached 2 | . . . . . . . . . . 2 . Fabnet Peak Effective % . | . . . . . . . . . . . . Robots Rewired . | . . . . . . . . . . . . Allies Hacked . | . . . . . . . . . . . . Hacks Repelled . | . . . . . . . . . . . . Allies | -11 -10 -10 -9 -9 -9 -8 -8 -8 -8 -8 -7 -------- Run | Yrd Mat Min Mat Min Exi Min Mat Gar Mat Gar Fac Total Allies 1 | . . . . . . . 1 . . . . Largest Group 1 | . . . . . . . 1 1 1 . . Highest-Rated Group 10 | . . . . . . . 10 10 9 . . Highest-Rated Ally 10 | . . . . . . . 10 10 9 . . Total Orders 12 | . . . . . . . . 12 . . . STAY 6 | . . . . . . . . 6 . . . FOLLOW 6 | . . . . . . . . 6 . . . Ally Attacks . | . . . . . . . . . . . . Total Damage . | . . . . . . . . . . . . Kills . | . . . . . . . . . . . . Allies Corrupted . | . . . . . . . . . . . . Allies Melted . | . . . . . . . . . . . . Intel | -11 -10 -10 -9 -9 -9 -8 -8 -8 -8 -8 -7 ------- Run | Yrd Mat Min Mat Min Exi Min Mat Gar Mat Gar Fac Robot Analysis Total 3 | . . . 2 . . . . . 1 . . Derelict Logs Recovered 3 | . . 1 . 2 . . . . . . . Drone Launches . | . . . . . . . . . . . . Drone Recoveries . | . . . . . . . . . . . . Exploration | -11 -10 -10 -9 -9 -9 -8 -8 -8 -8 -8 -7 ------------- Run | Yrd Mat Min Mat Min Exi Min Mat Gar Mat Gar Fac Turns Passed 9114 | 98 1408 1028 1216 825 586 262 1083 606 272 1508 222 Spaces Moved 4259 | 55 720 361 496 497 364 85 493 276 127 665 120 Core 3 | 3 . . . . . . . . . . . Treads 3252 | 52 77 . 496 497 364 85 493 276 127 665 120 Legs . | . . . . . . . . . . . . Wheels 1004 | . 643 361 . . . . . . . . . Hover . | . . . . . . . . . . . . Flight . | . . . . . . . . . . . . Fastest Speed 50 | 50 155 155 160 160 160 160 160 163 163 163 170 Average Speed 160 | 154 155 155 160 160 160 160 161 164 163 164 171 Slowest Speed 330 | 160 240 155 160 160 160 240 163 330 163 320 250 Overloaded Moves . | . . . . . . . . . . . . Propulsion Burnouts . | . . . . . . . . . . . . Robots Hopped . | . . . . . . . . . . . . Cave-ins Triggered . | . . . . . . . . . . . . Exploration Rate (%) 47 | 4 90 63 40 87 76 29 43 48 13 69 3 Regions Visited 11 Branch Regions 4 Pre-discovered Areas 4 | . 2 . 1 . . . . . . . 1 Known Exits Taken 2 | . . . . . . . 1 . 1 . . Unknown Exits Taken 7 | 1 1 1 1 1 1 1 . . . . . Scrap Searched 2 | . . 1 . 1 . . . . . . . Spaces Dug 5 | . . . . . . . 1 . . 4 . Terrain Destroyed 116 | . 42 . . 6 . 22 35 . . 9 2 Melee 5 | . . . . . . . 1 . . 4 . Projectile 2 | . . . . . . . . . . . 2 AOE 109 | . 42 . . 6 . 22 34 . . 5 . Terrain Rammed . | . . . . . . . . . . . . Walls Destroyed . | . . . . . . . . . . . . Machines Disabled . | . . . . . . . . . . . . Actions | -11 -10 -10 -9 -9 -9 -8 -8 -8 -8 -8 -7 --------- Run | Yrd Mat Min Mat Min Exi Min Mat Gar Mat Gar Fac Total 5777 | 66 906 801 743 510 369 145 691 351 162 901 132 Wait 813 | . 90 419 115 1 . 11 100 9 15 52 1 Move 4246 | 54 719 360 495 496 363 84 492 274 126 663 120 Hop . | . . . . . . . . . . . . Pick Up 82 | 3 24 3 9 1 3 2 11 2 1 20 3 Fast Attach 29 | 7 2 . 4 . . . 4 . . 11 1 Attach 41 | . 2 . 8 . . 6 6 5 1 12 1 Detach 12 | 1 . . . . . . 4 . 1 5 1 Swap 50 | . 9 . 11 . . 2 12 1 2 13 . Drop 63 | 1 10 3 10 1 3 . 14 1 . 18 2 Fire 404 | . 50 16 91 8 . 37 46 59 16 79 2 Melee 30 | . . . . . . . 2 . . 28 . Ram . | . . . . . . . . . . . . Kick . | . . . . . . . . . . . . Crush 7 | . . . . 3 . 3 . . . . 1 Escape Stasis . | . . . . . . . . . . . . Rewire . | . . . . . . . . . . . . Trap . | . . . . . . . . . . . . Miscellaneous . | . . . . . . . . . . . . Route ------- -11/Scrapyard -10/Materials (discovered 4 exits: *Mat x2 / [*Min] / *Sub) -10/Mines (discovered 2 exits: *Mat / Sub) -9/Materials (discovered 2 exits: *Mat / *Min) -9/Mines (discovered 4 exits: *Mat x2 / *Exi / [*Zio]) -9/Exiles -8/Mines -8/Materials (discovered 2 exits: *Fac / Gar) -8/Garrison (discovered 3 exits: *Mat x3) -8/Materials -8/Garrison (discovered 3 exits: *Fac x3) -7/Factory (discovered 1 exit: Sto) History --------- Turn | Location | Event 14 | -11/Scrapyard | Discovered new exit (range 14) 99 | -11/Scrapyard | Entered Materials 315 | -10/Materials | Build established: Mutant 704 | -10/Materials | Discovered new exit (range 7) 1164 | -10/Materials | Discovered new exit (range 13) 1267 | -10/Materials | Discovered new exit (range 12) 1320 | -10/Materials | Discovered new exit (range 15) 1507 | -10/Materials | Entered Mines 1546 | -10/Mines | Found a damaged Exp. Sensor Array with a note attached 1553 | -10/Mines | Found Prototype Device 1603 | -10/Mines | Assembled infested the area 1608 | -10/Mines | Assisted by a Guerilla fighting off Assembled 2226 | -10/Mines | Identified exit to Subcaves 2492 | -10/Mines | Discovered new exit (range 8) 2497 | -10/Mines | Received a Rocket Launcher from a helpful Derelict 2535 | -10/Mines | Entered Materials 2535 | -9/Materials | Evolved 2 slots: Propulsion x1, Utility x1 2970 | -9/Materials | Build established: Scavenger-Mutant 2992 | -9/Materials | Discovered new exit (range 6) 3280 | -9/Materials | Discovered new exit (range 13) 3751 | -9/Materials | Entered Mines 3810 | -9/Mines | A Derelict revealed a hidden shortcut to a safe place 3894 | -9/Mines | Deemed a non-threat by the Exiles lab entrance 3894 | -9/Mines | Discovered new exit (range 5) 4154 | -9/Mines | Learned Materials stockpile data 4236 | -9/Mines | Discovered new exit (range 14) 4407 | -9/Mines | Discovered new exit (range 7) 4478 | -9/Mines | YI-UF0 nonchalantly dropped a Grenade Launcher on the ground 4576 | -9/Mines | Entered Exiles 4576 | -9/Exiles | Found Exiles lab abandoned 4915 | -9/Exiles | Discovered new exit (range 10) 5162 | -9/Exiles | Entered Mines 5295 | -8/Mines | Core integrity fell below 50% 5321 | -8/Mines | Lost 4 parts (1p2n1w) 5339 | -8/Mines | Discovered new exit (range 8) 5351 | -8/Mines | Destroyed 9 combat bots 5353 | -8/Mines | Lost 3 parts (1n2w) 5424 | -8/Mines | Entered Materials 5424 | -8/Materials | Evolved 2 slots: Utility x1, Weapon x1 5916 | -8/Materials | Discovered new exit (range 14) 6262 | -8/Materials | Repaired Imp. EM Shotgun 6380 | -8/Materials | Build established: Scavenger-Gunner 6505 | -8/Materials | Identified exit to Garrison 6507 | -8/Materials | Entered Garrison 6507 | -8/Garrison | Accompanied by 1 ally 6529 | -8/Garrison | Discovered new exit (range 78) 6529 | -8/Garrison | Discovered new exit (range 50) 6529 | -8/Garrison | Discovered new exit (range 56) 6654 | -8/Garrison | Installed Relay Interface Framework 6767 | -8/Garrison | Triggered checkpoint 6821 | -8/Garrison | Triggered checkpoint 6842 | -8/Garrison | Build established: Scavenger-Skirmisher 6893 | -8/Garrison | Triggered checkpoint 6899 | -8/Garrison | Destroyed 9 combat bots 6905 | -8/Garrison | Lost 3 parts (1p2n) 7030 | -8/Garrison | Triggered checkpoint 7113 | -8/Garrison | Entered Materials 7113 | -8/Materials | Accompanied by 1 ally 7237 | -8/Materials | Garrison activated, responded to threat 7383 | -8/Materials | Identified exit to Garrison 7385 | -8/Materials | Entered Garrison 7403 | -8/Garrison | Triggered checkpoint 7525 | -8/Garrison | Triggered checkpoint 7591 | -8/Garrison | Triggered checkpoint 7632 | -8/Garrison | Core integrity fell below 50% 7667 | -8/Garrison | Lost 7 parts (1p3n1u2w) 7797 | -8/Garrison | Triggered checkpoint 7829 | -8/Garrison | Garrison Relay disabled 7936 | -8/Garrison | Discovered new exit (range 10) 8043 | -8/Garrison | Discovered new exit (range 15) 8072 | -8/Garrison | Expanded RIF knowledge: Signal Jamming 8178 | -8/Garrison | Build established: Scavenger-Tank 8223 | -8/Garrison | Lost 3 parts (2u1w) 8339 | -8/Garrison | Triggered checkpoint 8544 | -8/Garrison | Discovered new exit (range 25) 8544 | -8/Garrison | Discovered new exit (range 55) 8544 | -8/Garrison | Discovered new exit (range 64) 8893 | -8/Garrison | Entered Factory 8893 | -7/Factory | Evolved 2 slots: Utility x2 8894 | -7/Factory | Identified exit to Storage 9115 | -7/Factory | Self-destructed Last Messages --------------- 08961_ Connecting with Recycling Unit... 08961_ Current location identified: Factory >>Force(Tunnel) DISCOVERED[-4/Factory] 08961_ ALERT: Suspicious activity at Recycling Unit F004. Dispatching Investigation squad. 08990_ Connecting with Repair Station... 08996_ Acquired System Shield. 09001_ Dropped Kinecellerator. 09002_ Acquired System Restoration Module. 09032_ Slammed into T-07 Excavator. 09059_ Connecting with Terminal... 09069_ Slug penetrates Y-54 Guardian. 09072_ Y-54 Guardian Imp. Light Armor Plating blasted off. 09072_ Y-54 Guardian destroyed. 09078_ Acquired 47 matter. 09089_ Dropped Grenade Launcher. 09090_ Acquired Imp. Datajack. 09094_ Acquired 2 matter. Map ----- +----------------------------------------------------+ | ????# + #???????????????? | | ????# ## #???????????????? | | ????# ## #???????????????? | | ????# ## #???????????????? | | ????# ##+########???????????????? | | ????# #######????????????????? | | ????# ""???????????? | | ????# ##+######## ???????????? | | ????# # ! #????????????????? | | ????# # #????????????????? | | ????# # " "" #????????????????? | | ????# # "R"" #????????????????? | | ????# # """ !#????????????????? | | ????# ##+##########????????????????? | | ????# #??? ??????????????????????? | | ????# #??? ??????????????????????? | | ????# #??? ??????????????????????? | | ????# #???" "??????#???????????????? | | ????# #??"" ""??? #???????????????? | | ????# # """ """ +???????????????? | | ????# # #???????????????? | | ????# # """ """ #???????????????? | | ????# # """ """ #???????????????? | | ????# # """ """ #???????????????? | | ????# # #???????????????? | | ????# # @ #???????????????? | | ????# #####/########???????????????? | | ??### ###?# #??????????????????????? | | ??# ### ##?????????????????????? | | ??# "" #?????????????????????? | | ??# T% #?????????????????????? | | ?## * #?????????????????????? | | ?#" ! ## #?????????????????????? | | ?####+"### #?????????????????????? | | ?# ### #?????????????????????? | | ?# ## #?????????????????????? | | ?# ] ### #?????????????????????? | | ?#!! !#?= ?????????????????????? | | ?#!!/ #? ????????????????????? | | ?#!/ #? T" ????????????????????? | | ?# #? " ???????????????????? | | ?####### ???????????????????? | | ???????? ? ##??????????????????? | | ???????? ? #???????????????????? | | ????????##??###????????????????????? | | ???????????????????????????????????? | | ???????????????????????????????????? | | ???????????????????????????????????? | | ???????????????????????????????????? | | ???????????????????????????????????? | +----------------------------------------------------+ Best States ------------- Heat Dissipation 45 Energy Generation 18 Energy Capacity 310 Matter Stores 300 Matter Capacity 300 Sight Range 20 Terrain Scan Density 10 Armor Coverage 225 Core Shielding 20 Evasion (%) 40 Targeting Accuracy 5 Target Analysis 5 Recoil Reduction 3 Kinecelleration 30 Offensive Hacking 10 Defensive Hacking 10 Relay Coupler Types 1 Relay Coupler Value 29 Item Schematics ----------------- None Robot Schematics ------------------ None Fabricated ------------ Nothing Alien Tech Used ----------------- None Achievements -------------- None Challenges ------------ None Game ------ Seed BladeBottomlessChip Manual? 0 Play Time 01:04:14 Cumulative 178.5 hours Start 2024.11.16 @ 03:00:33 End 2024.11.16 @ 18:01:38 Sessions 5 Manual Loads 0 Difficulty Rogue Special Mode None Game No. 108 Rogue 72 Adventurer 36 Explorer 0 Win Type - Total 3 Types 2/0/0/1/0/0/0/0/0 Lore% 56 Gallery% 65 Achievement% 57 Wizard Run 0 Options --------- Layout 1 ASCII 0 Keyboard 0 Movement Numpad Keybinds 0 Fullscreen 1 Font 48/Smallcaps Map View 50x35 Zoom Use 0% Tactical HUD 1 Map Filters NONE Filters NONE Steam 1 RUN: dca37033-f904-46e8-abab-71ab81bedbd9